fUSD/lending_fUSD_20250811
["ID","MTS","AMOUNT","RATE_DAILY","PERIOD"]
[378652250,1754944233230,-150.0,0.00016194,2]
[378652251,1754944233239,-150.0,0.00016195,2]
[378652252,1754944233249,-150.0,0.00016197,2]
[378652253,1754944233259,-1217.99598,0.000162,2]
[378652254,1754944233268,-150.0,0.000162,2]
[378652255,1754944233278,-150.0,0.00016202,2]
[378652256,1754944233288,-150.0,0.00016203,2]
[378652257,1754944233297,-1000.0,0.00016204,2]
[378652258,1754944233307,-150.0,0.00016206,2]
[378652259,1754944233318,-150.0,0.00016207,2]
[378652260,1754944233328,-2319.86790924,0.0001621,2]
[378652261,1754944233338,-150.0,0.00016213,2]
[378652262,1754944233348,-150.0,0.00016215,2]
[378652263,1754944233357,-169.0,0.00016215,2]
[378652264,1754944233367,-600.0,0.00016217,2]
[378652265,1754944233376,-600.0,0.00016217,2]
[378652266,1754944233386,-557.44,0.00016217,2]
[378652267,1754944233395,-150.0,0.00016219,2]
[378652268,1754944233404,-150.0,0.00016222,2]
[378652269,1754944233414,-150.0,0.00016222,2]
[378652270,1754944233424,-150.0,0.00016229,2]
[378652271,1754944233433,-150.0,0.00016232,2]
[378652272,1754944233443,-150.0,0.00016233,2]
[378652273,1754944233452,-150.0,0.00016236,2]
[378652274,1754944233461,-150.0,0.00016236,2]
[378652275,1754944233471,-150.0,0.00016238,2]
[378652276,1754944233480,-150.0,0.0001624,2]
[378652277,1754944233489,-150.0,0.00016241,2]
[378652278,1754944233498,-150.0,0.00016243,2]
[378652279,1754944233508,-150.0,0.00016249,2]
[378652280,1754944233518,-150.0,0.0001625,2]
[378652281,1754944233527,-150.0,0.00016254,2]
[378652282,1754944233536,-196.15405025,0.00016255,2]
[378652283,1754944233545,-231.28369723,0.00016255,2]
[378652284,1754944233554,-568.87774615,0.00016258,2]
[378652285,1754944233565,-169.0,0.00016259,2]
[378652286,1754944233574,-85606.65415028,0.00016265,2]
[378652287,1754944233587,-7138.28007371,0.00016265,2]
[378652288,1754944233613,-1188.187,0.00016265,2]
[378652289,1754944233624,-3215.79887537,0.00016265,2]
[378652290,1754944233651,-3510.0,0.00016265,2]
[378652291,1754944233661,-380.2541582,0.00016265,2]
[378652292,1754944233680,-4152.21280305,0.00016265,2]
[378652293,1754944238122,-835.48750966,0.00016265,2]
[378652294,1754944238386,-46475.71612973,0.00016265,2]
[378652295,1754944238399,-3208.2028,0.00016265,2]
[378652296,1754944238408,-558.7721085,0.00016265,2]
[378652297,1754944238417,-377.09887249,0.00016265,2]
[378652299,1754944238427,-157.9086696,0.00016265,2]
[378652301,1754944238436,-171.51661437,0.00016265,2]
[378652303,1754944238445,-468.1448571,0.00016265,2]
[378652304,1754944238455,-170.15128046,0.00016265,2]
[378652306,1754944238464,-6643.85454126,0.00016265,2]
[378652308,1754944238473,-178.35078942,0.00016265,2]
[378652310,1754944238483,-151.27471094,0.00016266,2]
[378652312,1754944238491,-157.89903175,0.0001627,2]
[378652314,1754944238501,-150.0,0.00016271,2]
[378652315,1754944238510,-150.0,0.00016272,2]
[378652317,1754944238519,-150.0,0.00016273,2]
[378652319,1754944238529,-150.0,0.00016275,2]
[378652321,1754944238538,-150.0,0.00016278,2]
[378652323,1754944238546,-150.0,0.0001628,2]
[378652324,1754944238555,-150.0,0.00016283,2]
[378652326,1754944238565,-150.0,0.00016283,2]
[378652328,1754944238576,-150.0,0.00016288,2]
[378652330,1754944238585,-150.0,0.00016289,2]
[378652332,1754944238594,-150.0,0.00016293,2]
[378652334,1754944238603,-150.0,0.00016295,2]
[378652335,1754944238612,-150.0,0.00016298,2]
[378652337,1754944238627,-150.0,0.00016298,2]
[378652339,1754944238636,-150.0,0.000163,2]
[378652341,1754944238646,-4569.3813718,0.000163,2]
[378652345,1754944238690,-454.954504,0.000163,2]
[378652348,1754944238704,-1134.6,0.000163,2]
[378652350,1754944238715,-2343.6,0.000163,2]
[378652352,1754944238727,-1026.561218,0.000163,2]
[378652354,1754944238737,-1376.98147835,0.000163,2]
[378652358,1754944238776,-8729.92142785,0.000163,2]
[378652360,1754944238785,-150.0,0.00016303,2]
[378652362,1754944238794,-120.07857215,0.00016305,2]
[378652364,1754944238805,-29.92142785,0.00016305,2]
[378652366,1754944238819,-154.74573768,0.0001631,2]
[378652368,1754944238828,-711.43646447,0.0001633,2]
[378652370,1754944238839,-506.55952553,0.0001633,2]
[378652372,1754944238848,-73.94547447,0.00016331,2]
[378652377,1754944238895,-83.03959287,0.00016331,2]
[378652379,1754944238904,-150.0,0.00016339,2]
[378652380,1754944238913,-263.44262098,0.00016343,2]
[378652382,1754944238922,-97.57696969,0.00016347,2]
[378652496,1754944240202,-52.42303031,0.00016347,2]
[378652497,1754944240212,-150.0,0.0001635,2]
[378652498,1754944240221,-150.0,0.00016353,2]
[378652499,1754944240230,-3477.51589446,0.00016354,2]
[378652500,1754944240243,-571.36772708,0.00016354,2]
[378652501,1754944240315,-4321.93349066,0.00016354,2]
[378652502,1754944240325,-151.0,0.00016355,2]
[378652503,1754944240335,-500.0,0.00016355,2]
[378652504,1754944240344,-500.0,0.00016355,2]
[378652505,1754944240353,-160.0,0.00016355,2]
[378652506,1754944240363,-151.0,0.00016355,2]
[378652507,1754944240372,-165.72508203,0.00016355,2]
[378652508,1754944240381,-151.0,0.00016355,2]
[378652509,1754944240391,-346.92554585,0.00016355,2]
[378652510,1754944240400,-500.0,0.00016355,2]
[378652511,1754944240409,-500.0,0.00016355,2]
[378652512,1754944240418,-300.0,0.00016355,2]
[378652513,1754944240427,-151.0,0.00016355,2]
[378652514,1754944240436,-204.33442197,0.00016355,2]
[378652515,1754944240445,-600.0,0.00016355,2]
[378652516,1754944240455,-200.0,0.00016355,2]
[378652517,1754944240463,-349.73,0.00016362,2]
[378652518,1754944240473,-6643.8545412,0.00016364,2]
[378652519,1754944240482,-3413.73162346,0.00016365,2]
[378652520,1754944240494,-5946.126,0.00016365,2]
[378652521,1754944240505,-2646.72681391,0.00016365,2]
[378652523,1754944240516,-2187.36732239,0.00016365,2]
[378652524,1754944240527,-3868.250001,0.00016365,2]
[378652528,1754944240557,-799.42332,0.00016365,2]
[378652815,1754944243255,-1826.66756755,0.00016365,2]
[378652817,1754944243267,-517.52128783,0.00016365,2]
[378652819,1754944243277,-317.98,0.00016365,2]
[378652821,1754944243289,-279.66992043,0.00016365,2]
[378652826,1754944243327,-39938.02379805,0.00016365,2]
[378652828,1754944243338,-1041.58591597,0.00016365,2]
[378652840,1754944243555,-2417.3999997,0.00016365,2]
[378652843,1754944243614,-259.10064173,0.00016365,2]
[378652845,1754944243626,-23770.0,0.00016365,2]
[378653127,1754944246246,-5327.22946454,0.00016365,2]
[378653130,1754944246261,-762.73988176,0.00016365,2]
[378653145,1754944246398,-269.38241397,0.00016365,2]
[378653148,1754944246410,-1690.72061342,0.00016365,2]
[378653151,1754944246433,-4270.80162864,0.00016365,2]
[378653157,1754944246476,-23811.528,0.00016365,2]
[378653159,1754944246489,-50647.70894046,0.00016365,2]
[378653165,1754944246535,-524.505288,0.00016365,2]
[378653167,1754944246546,-1805.66253402,0.00016365,2]
[378653173,1754944246592,-1888.0,0.00016365,2]
[378653180,1754944246650,-3101.56521001,0.00016365,2]
[378654367,1754944258328,277.23621549,0.00015775,2]
[378655153,1754944307341,191.21,0.00015171,2]
[378655156,1754944483803,326.28,0.00015171,2]
[378655157,1754944514615,177.74,0.00015507,2]
[378655158,1754944514956,161.42,0.00013699,2]
[378655160,1754944540663,168.0,0.00015977,2]
[378655162,1754944575408,513.0,0.00015773,2]
[378655163,1754944611934,170.0,0.00015359,7]
[378655164,1754944632074,215.4,0.00015496,2]
[378655165,1754944671907,1000.0,0.00015334,2]
[378655166,1754944753155,23900.0,0.00015325,2]
[378655168,1754944840034,723.95,0.00015336,2]
[378655169,1754945067942,250.0,0.00015861,2]
[378655170,1754945118017,150.0,0.00015288,2]
[378655171,1754945129996,150.0,0.00015288,2]
[378655172,1754945193117,178.34,0.00015302,2]
[378655174,1754945298532,152.64,0.00015307,2]
[378655178,1754945431611,-250.0,0.00016067,2]
[378655179,1754945431620,-216.64244301,0.000161,2]
[378655180,1754945431632,-296.35755699,0.000161,2]
[378655181,1754945431642,-178.60094301,0.000161,2]
[378655182,1754945431653,-331.49609331,0.000161,2]
[378655183,1754945431664,-6.90296368,0.000161,2]
[378655184,1754945431674,-150.0,0.00016111,2]
[378655185,1754945431684,-150.0,0.00016143,2]
[378655186,1754945431694,-168.0,0.00016145,2]
[378655187,1754945431703,-231.28369723,0.00016153,2]
[378655188,1754945431712,-150.0,0.0001616,2]
[378655189,1754945431722,-251.39924832,0.00016164,2]
[378655190,1754945431731,-168.0,0.00016168,2]
[378655191,1754945431740,-8.9418697,0.00016191,2]
[378655192,1754945431752,-141.0581303,0.00016191,2]
[378655193,1754945431762,-811.99732,0.000162,2]
[378655194,1754945431773,-150.0,0.00016212,2]
[378655195,1754945431784,-150.0,0.00016216,2]
[378655196,1754945431794,-150.0,0.00016222,2]
[378655197,1754945431804,-150.0,0.00016231,2]
[378655198,1754945431814,-1200.0,0.00016253,2]
[378655199,1754945431824,-333.0,0.00016254,2]
[378655200,1754945431835,-160.0,0.00016255,2]
[378655201,1754945431845,-300.0,0.00016255,2]
[378655202,1754945431855,-346.92554585,0.00016255,2]
[378655203,1754945431865,-151.0,0.00016255,2]
[378655204,1754945431875,-300.0,0.00016255,2]
[378655205,1754945431885,-151.0,0.00016255,2]
[378655206,1754945431895,-300.0,0.00016255,2]
[378655207,1754945431905,-151.0,0.00016255,2]
[378655209,1754945431915,-300.0,0.00016255,2]
[378655211,1754945431924,-151.0,0.00016255,2]
[378655213,1754945431933,-300.0,0.00016255,2]
[378655215,1754945431942,-500.0,0.00016255,2]
[378655217,1754945431951,-151.0,0.00016255,2]
[378655218,1754945431960,-300.0,0.00016255,2]
[378655219,1754945431970,-500.0,0.00016255,2]
[378655220,1754945431978,-151.0,0.00016255,2]
[378655221,1754945431988,-300.0,0.00016255,2]
[378655222,1754945431997,-500.0,0.00016255,2]
[378655223,1754945432007,-151.0,0.00016255,2]
[378655224,1754945432015,-500.0,0.00016255,2]
[378655225,1754945432025,-300.0,0.00016255,2]
[378655226,1754945432034,-500.0,0.00016255,2]
[378655227,1754945432043,-300.0,0.00016255,2]
[378655228,1754945432053,-500.0,0.00016255,2]
[378655229,1754945432070,-151.0,0.00016255,2]
[378655230,1754945432080,-500.0,0.00016255,2]
[378655231,1754945432089,-500.0,0.00016255,2]
[378655232,1754945432099,-300.0,0.00016255,2]
[378655233,1754945432108,-500.0,0.00016255,2]
[378655236,1754945432117,-151.0,0.00016255,2]
[378655238,1754945432127,-500.0,0.00016255,2]
[378655239,1754945432136,-500.0,0.00016255,2]
[378655240,1754945432145,-151.0,0.00016255,2]
[378655241,1754945432157,-300.0,0.00016255,2]
[378655242,1754945432166,-500.0,0.00016255,2]
[378655243,1754945432175,-151.0,0.00016255,2]
[378655244,1754945432185,-500.0,0.00016255,2]
[378655245,1754945432194,-141.58143241,0.00016255,2]
[378655246,1754945432214,-358.41856759,0.00016255,2]
[378655247,1754945432225,-500.0,0.00016255,2]
[378655248,1754945432234,-151.0,0.00016255,2]
[378655249,1754945432244,-500.0,0.00016255,2]
[378655250,1754945432253,-500.0,0.00016255,2]
[378655251,1754945432262,-500.0,0.00016255,2]
[378655252,1754945432271,-500.0,0.00016255,2]
[378655253,1754945432281,-151.0,0.00016255,2]
[378655254,1754945432291,-500.0,0.00016255,2]
[378655255,1754945432300,-500.0,0.00016255,2]
[378655256,1754945432310,-500.0,0.00016255,2]
[378655257,1754945432319,-151.0,0.00016255,2]
[378655258,1754945432329,-500.0,0.00016255,2]
[378655259,1754945432338,-563.26492725,0.00016255,2]
[378655260,1754945432349,-500.0,0.00016255,2]
[378655261,1754945432358,-151.0,0.00016255,2]
[378655262,1754945432368,-500.0,0.00016255,2]
[378655263,1754945432378,-500.0,0.00016255,2]
[378655264,1754945432387,-151.0,0.00016255,2]
[378655265,1754945432397,-500.0,0.00016255,2]
[378655266,1754945432407,-500.0,0.00016255,2]
[378655267,1754945432417,-500.0,0.00016255,2]
[378655268,1754945432426,-500.0,0.00016255,2]
[378655269,1754945432436,-500.0,0.00016255,2]
[378655270,1754945432445,-500.0,0.00016255,2]
[378655271,1754945432455,-500.0,0.00016255,2]
[378655272,1754945432467,-500.0,0.00016255,2]
[378655273,1754945432477,-500.0,0.00016255,2]
[378655274,1754945432488,-500.0,0.00016255,2]
[378655275,1754945432497,-500.0,0.00016255,2]
[378655276,1754945432507,-500.0,0.00016255,2]
[378655277,1754945432516,-202.96395781,0.00016264,2]
[378655278,1754945432526,-727.87606318,0.00016264,2]
[378655279,1754945432536,-478.94752158,0.00016265,2]
[378655280,1754945432546,-157.9086696,0.00016265,2]
[378655281,1754945432555,-169.24656107,0.00016265,2]
[378655282,1754945432564,-5478.25580133,0.00016265,2]
[378655283,1754945432573,-568.87774615,0.00016265,2]
[378655284,1754945432583,-150.0,0.00016267,2]
[378655285,1754945432592,-150.0,0.00016288,2]
[378655286,1754945432601,-150.0,0.000163,2]
[378655287,1754945432610,-150.0,0.00016313,2]
[378655288,1754945432620,-178.34,0.00016322,2]
[378655289,1754945432629,-168.0,0.00016329,2]
[378655290,1754945432639,-1454.0,0.00016329,2]
[378655291,1754945432648,-811.99733,0.0001633,2]
[378655292,1754945432657,-168.0,0.00016339,2]
[378655293,1754945432667,-9451.2302279,0.00016354,2]
[378655294,1754945432676,-206.71892997,0.00016355,2]
[378655295,1754945432686,-500.0,0.00016355,2]
[378655296,1754945432696,-150.0,0.00016355,2]
[378655297,1754945432705,-150.0,0.00016355,2]
[378655298,1754945432714,-150.0,0.00016355,2]
[378655299,1754945432724,-150.0,0.00016355,2]
[378655300,1754945432733,-500.0,0.00016355,2]
[378655301,1754945432742,-150.0,0.00016355,2]
[378655302,1754945432752,-150.0,0.00016355,2]
[378655303,1754945432762,-500.0,0.00016355,2]
[378655304,1754945432771,-262.6977922,0.00016355,2]
[378655305,1754945432781,-150.0,0.00016355,2]
[378655306,1754945432790,-150.0,0.00016355,2]
[378655307,1754945432799,-500.0,0.00016355,2]
[378655308,1754945432809,-150.0,0.00016355,2]
[378655309,1754945432818,-150.0,0.00016355,2]
[378655310,1754945432828,-150.0,0.00016355,2]
[378655311,1754945432839,-500.0,0.00016355,2]
[378655312,1754945432848,-150.0,0.00016355,2]
[378655313,1754945432857,-150.0,0.00016355,2]
[378655314,1754945432866,-150.0,0.00016355,2]
[378655315,1754945432876,-150.0,0.00016355,2]
[378655316,1754945432885,-150.0,0.00016355,2]
[378655317,1754945432895,-150.0,0.00016355,2]
[378655318,1754945432905,-150.0,0.00016355,2]
[378655319,1754945432915,-500.0,0.00016355,2]
[378655320,1754945432925,-150.0,0.00016355,2]
[378655321,1754945432934,-150.0,0.00016358,2]
[378655322,1754945432944,-727.87606313,0.00016363,2]
[378655323,1754945432953,-1961.9303482,0.00016364,2]
[378655324,1754945432963,-5020.5220387,0.00016364,2]
[378655325,1754945432972,-27658.00650721,0.00016364,2]
[378655326,1754945432993,-4933.96149444,0.00016364,2]
[378655327,1754945433005,-47555.49593893,0.00016364,2]
[378655331,1754945437379,-6427.11289178,0.00016364,2]
[378655332,1754945437436,-576.57554404,0.00016364,2]
[378655333,1754945437446,-3645.573,0.00016364,2]
[378655334,1754945437456,-2876.38005722,0.00016364,2]
[378655335,1754945437551,-958.92722149,0.00016364,2]
[378655336,1754945437577,-1642.94852257,0.00016364,2]
[378655337,1754945437587,-1175789.20886643,0.00016365,2]
[378655338,1754945437598,-4371.5636384,0.00016365,2]
[378655446,1754945439695,-6801.60396998,0.00016365,2]
[378655447,1754945439706,-2974.5,0.00016365,2]
[378655448,1754945439729,-1191.5519996,0.00016365,2]
[378655449,1754945439740,-410.65943239,0.00016365,2]
[378655562,1754945442828,-390.12071425,0.00016265,2]
[378655564,1754945442837,-1636.08565013,0.00016365,2]
[378655567,1754945442853,-860.5534198,0.00016365,2]
[378655570,1754945442868,-263.95605343,0.00016365,2]
[378655572,1754945442879,-300.0,0.00016365,2]
[378655574,1754945442892,-673.14206966,0.00016365,2]
[378655577,1754945442907,-1614947.06560012,0.00016365,2]
[378655580,1754945442928,-143453.2812569,0.00016365,2]
[378655582,1754945442938,-151.0,0.00016365,2]
[378655584,1754945442947,-151.0,0.00016365,2]
[378655586,1754945442958,-200.0,0.00016365,2]
[378655588,1754945442970,-200.0,0.00016365,2]
[378655590,1754945442982,-165.93364377,0.00016365,2]
[378655592,1754945442991,-503.53147131,0.00016365,2]
[378655594,1754945443000,-555.65935978,0.00016365,2]
[378655596,1754945443010,-151.0,0.00016365,2]
[378655598,1754945443019,-151.0,0.00016365,2]
[378655600,1754945443028,-151.0,0.00016365,2]
[378655602,1754945443038,-151.0,0.00016365,2]
[378655604,1754945443047,-151.0,0.00016365,2]
[378655606,1754945443057,-151.0,0.00016365,2]
[378655608,1754945443066,-151.0,0.00016365,2]
[378655610,1754945443075,-151.0,0.00016365,2]
[378655612,1754945443084,-151.0,0.00016365,2]
[378655614,1754945443095,-151.0,0.00016365,2]
[378655616,1754945443104,-151.0,0.00016365,2]
[378655618,1754945443113,-151.0,0.00016365,2]
[378655620,1754945443123,-151.0,0.00016365,2]
[378655622,1754945443132,-151.0,0.00016365,2]
[378655624,1754945443141,-151.0,0.00016365,2]
[378655626,1754945443153,-151.0,0.00016365,2]
[378655628,1754945443162,-151.0,0.00016365,2]
[378655630,1754945443171,-151.0,0.00016365,2]
[378655632,1754945443181,-151.0,0.00016365,2]
[378655634,1754945443191,-151.0,0.00016365,2]
[378655636,1754945443200,-151.0,0.00016365,2]
[378655638,1754945443210,-151.0,0.00016365,2]
[378655640,1754945443219,-151.0,0.00016365,2]
[378655642,1754945443230,-151.0,0.00016365,2]
[378655644,1754945443239,-151.0,0.00016365,2]
[378655646,1754945443248,-151.0,0.00016365,2]
[378655648,1754945443258,-151.0,0.00016365,2]
[378655650,1754945443267,-151.0,0.00016365,2]
[378655652,1754945443276,-151.0,0.00016365,2]
[378655654,1754945443285,-151.0,0.00016365,2]
[378655656,1754945443295,-151.0,0.00016365,2]
[378655658,1754945443304,-151.0,0.00016365,2]
[378655660,1754945443313,-151.0,0.00016365,2]
[378655662,1754945443323,-247.6557842,0.00016365,2]
[378655664,1754945443333,-203.38204803,0.00016365,2]
[378655666,1754945443343,-177.94939297,0.00016365,2]
[378655668,1754945443352,-167.996,0.00016375,2]
[378655670,1754945443361,-200.0,0.00016391,2]
[378655672,1754945443371,-168.0,0.00016395,2]
[378655674,1754945443380,-10314.42265392,0.000164,2]
[378655676,1754945443389,-400.0,0.00016438,2]
[378655678,1754945443398,-400.0,0.00016438,2]
[378655680,1754945443408,-257.69479192,0.00016438,2]
[378655682,1754945443417,-471.13131648,0.00016438,2]
[378655684,1754945443427,-400.0,0.00016438,2]
[378655686,1754945443436,-400.0,0.00016438,2]
[378655688,1754945443445,-400.0,0.00016438,2]
[378655690,1754945443455,-400.0,0.00016438,2]
[378655692,1754945443465,-228.83246787,0.00016438,2]
[378655694,1754945443474,-400.0,0.00016438,2]
[378655696,1754945443484,-400.0,0.00016438,2]
[378655698,1754945443494,-151.0,0.00016438,2]
[378655700,1754945443503,-400.0,0.00016438,2]
[378655702,1754945443512,-151.0,0.00016438,2]
[378655704,1754945443522,-400.0,0.00016438,2]
[378655706,1754945443531,-400.0,0.00016438,2]
[378655708,1754945443540,-400.0,0.00016438,2]
[378655710,1754945443549,-400.0,0.00016438,2]
[378655712,1754945443559,-400.0,0.00016438,2]
[378655714,1754945443568,-400.0,0.00016438,2]
[378655716,1754945443577,-400.0,0.00016438,2]
[378655718,1754945443586,-547.74533286,0.00016438,2]
[378655720,1754945443596,-400.0,0.00016438,2]
[378655722,1754945443605,-400.0,0.00016438,2]
[378655724,1754945443615,-400.0,0.00016438,2]
[378655726,1754945443624,-400.0,0.00016438,2]
[378655728,1754945443633,-400.0,0.00016438,2]
[378655730,1754945443642,-317.43846192,0.00016438,2]
[378655732,1754945443652,-400.0,0.00016438,2]
[378655734,1754945443661,-400.0,0.00016438,2]
[378655736,1754945443671,-452.280467,0.00016438,2]
[378655738,1754945443680,-400.0,0.00016438,2]
[378655740,1754945443689,-742.155175,0.00016438,2]
[378655742,1754945443699,-462.83,0.00016438,2]
[378655744,1754945443708,-151.0,0.00016438,2]
[378655746,1754945443717,-151.0,0.00016438,2]
[378655748,1754945443726,-400.0,0.00016438,2]
[378655750,1754945443735,-400.0,0.00016438,2]
[378655752,1754945443745,-787.067224,0.00016438,2]
[378655754,1754945443754,-400.0,0.00016438,2]
[378655756,1754945443763,-400.0,0.00016438,2]
[378655758,1754945443772,-158.851138,0.00016438,2]
[378655760,1754945443781,-400.0,0.00016438,2]
[378655762,1754945443791,-400.0,0.00016438,2]
[378655764,1754945443800,-151.0,0.00016438,2]
[378655766,1754945443809,-400.0,0.00016438,2]
[378655768,1754945443819,-400.0,0.00016438,2]
[378655770,1754945443827,-400.0,0.00016438,2]
[378655772,1754945443836,-318.19136383,0.00016438,2]
[378655774,1754945443846,-400.0,0.00016438,2]
[378655777,1754945443856,-400.0,0.00016438,2]
[378655778,1754945443866,-400.0,0.00016438,2]
[378655781,1754945443875,-400.0,0.00016438,2]
[378655783,1754945443884,-400.0,0.00016438,2]
[378655785,1754945443894,-400.0,0.00016438,2]
[378655787,1754945443903,-151.0,0.00016438,2]
[378655789,1754945443912,-400.0,0.00016438,2]
[378655791,1754945443921,-400.0,0.00016438,2]
[378655793,1754945443930,-400.0,0.00016438,2]
[378655795,1754945443940,-400.0,0.00016438,2]
[378655797,1754945443949,-400.0,0.00016438,2]
[378655799,1754945443958,-400.0,0.00016438,2]
[378655801,1754945443967,-151.0,0.00016438,2]
[378655803,1754945443976,-400.0,0.00016438,2]
[378655805,1754945443985,-400.0,0.00016438,2]
[378655807,1754945443995,-400.0,0.00016438,2]
[378655809,1754945444004,-405.56,0.00016438,2]
[378655811,1754945444013,-538.28213436,0.00016438,2]
[378655813,1754945444022,-400.0,0.00016438,2]
[378655814,1754945444031,-400.0,0.00016438,2]
[378655816,1754945444040,-400.0,0.00016438,2]
[378655818,1754945444050,-400.0,0.00016438,2]
[378655820,1754945444059,-428.16,0.00016438,2]
[378655821,1754945444067,-400.0,0.00016438,2]
[378655822,1754945444076,-470.97,0.00016438,2]
[378655823,1754945444085,-400.0,0.00016438,2]
[378655824,1754945444095,-400.0,0.00016438,2]
[378655825,1754945444104,-400.0,0.00016438,2]
[378655826,1754945444113,-400.0,0.00016438,2]
[378655827,1754945444122,-169.786431,0.00016438,2]
[378655828,1754945444131,-400.0,0.00016438,2]
[378655829,1754945444140,-400.0,0.00016438,2]
[378655830,1754945444151,-400.0,0.00016438,2]
[378655831,1754945444165,-400.0,0.00016438,2]
[378655832,1754945444174,-400.0,0.00016438,2]
[378655833,1754945444184,-400.0,0.00016438,2]
[378655834,1754945444194,-400.0,0.00016438,2]
[378655835,1754945444203,-400.0,0.00016438,2]
[378655836,1754945444211,-194.65863617,0.00016438,2]
[378655837,1754945444220,-151.0,0.00016438,2]
[378655838,1754945444231,-400.0,0.00016438,2]
[378655839,1754945444240,-400.0,0.00016438,2]
[378655840,1754945444249,-400.0,0.00016438,2]
[378655841,1754945444257,-400.0,0.00016438,2]
[378655842,1754945444266,-400.0,0.00016438,2]
[378655843,1754945444275,-400.0,0.00016438,2]
[378655844,1754945444284,-150.0,0.00016438,2]
[378655845,1754945444293,-400.0,0.00016438,2]
[378655846,1754945444301,-2965.8,0.00016438,2]
[378655847,1754945444311,-400.0,0.00016438,2]
[378655848,1754945444321,-400.0,0.00016438,2]
[378655849,1754945444330,-400.0,0.00016438,2]
[378655850,1754945444343,-151.0,0.00016438,2]
[378655851,1754945444352,-400.0,0.00016438,2]
[378655852,1754945444361,-406.25,0.00016438,2]
[378655853,1754945444370,-400.0,0.00016438,2]
[378655854,1754945444379,-400.0,0.00016438,2]
[378655855,1754945444388,-602.8,0.00016438,2]
[378655856,1754945444398,-400.0,0.00016438,2]
[378655857,1754945444407,-400.0,0.00016438,2]
[378655858,1754945444415,-400.0,0.00016438,2]
[378655859,1754945444425,-400.0,0.00016438,2]
[378655860,1754945444434,-468.04,0.00016438,2]
[378655861,1754945444443,-438.42,0.00016438,2]
[378655862,1754945444452,-508.98,0.00016438,2]
[378655863,1754945444462,-400.0,0.00016438,2]
[378655864,1754945444471,-400.0,0.00016438,2]
[378655865,1754945444480,-400.0,0.00016438,2]
[378655866,1754945444490,-400.0,0.00016438,2]
[378655867,1754945444499,-294.22130837,0.00016438,2]
[378655868,1754945444508,-400.0,0.00016438,2]
[378655869,1754945444517,-743.96,0.00016438,2]
[378655870,1754945444526,-400.0,0.00016438,2]
[378655871,1754945444535,-400.0,0.00016438,2]
[378655872,1754945444544,-400.0,0.00016438,2]
[378655873,1754945444554,-569.46,0.00016438,2]
[378655874,1754945444562,-400.0,0.00016438,2]
[378655875,1754945444571,-694.99,0.00016438,2]
[378655876,1754945444581,-151.0,0.00016438,2]
[378655877,1754945444592,-520.47,0.00016438,2]
[378655878,1754945444602,-400.0,0.00016438,2]
[378655879,1754945444612,-400.0,0.00016438,2]
[378655880,1754945444621,-400.0,0.00016438,2]
[378655881,1754945444631,-400.0,0.00016438,2]
[378655882,1754945444640,-601.41,0.00016438,2]
[378655883,1754945444649,-400.0,0.00016438,2]